Cogmind - Beta 17 @@@ ROGUE MODE // 2026.08.09 @ 15:01:38 // Winter2019/RPGLIKE Player: Minty Result: Destroyed by Y-45 Defender with Beam Rifle Performance ------------- Evolutions (2) 1000 Regions Visited (3) 600 Robots Destroyed (16) 80 Value Destroyed (576) 576 Prototype IDs (19) 380 Alien Tech Used (0) 0 Bonus (6250) 6250 TOTAL SCORE: 8886 Bonus ------- Prayed to X0-1V1 5000 Major X0-1V1 Interference 1250 Cogmind --------- Core Integrity 0/850 Matter 296/750 Energy 826/1015 System Corruption 0% Temperature Cool (-620) Movement Treading (160) Location -8/Materials Parts ------- > --- POWER (2) -------- Light Ion Engine Light Deuterium Engine (fused) > --- PROPULSION (4) --- Light Treads (fused) Spiked Treads (fused) Titanium Leg Compact Wheel > --- UTILITY (4) ------ Cooling System Visual Processing Unit (fused) > --- WEAPON (4) ------- Powered Cannon Battle Cannon > --- INVENTORY (0) ---- (None) Peak State ------------ > --- POWER ------------ Light Ion Engine Subdweller Power Source Light Deuterium Engine > --- PROPULSION ------- Light Treads Spiked Treads Titanium Leg > --- UTILITY ---------- Advanced Sensor Array Scrap Shield Self-contained Transmogrifier > --- WEAPON ----------- Improved Medium Laser Powered Cannon Battle Cannon > --- INVENTORY -------- (None) [Rating: 49] Favorites ----------- Power Light Ion Engine Engine Light Ion Engine Propulsion Light Treads Treads Light Treads Leg Titanium Leg Wheel Compact Wheel Utility Scrap Shield Device X0-1V1's Piety Tracker Processor Visual Processing Unit Protection Scrap Shield Weapon Battle Cannon Energy Gun Medium Laser Energy Cannon Powered Cannon Ballistic Gun Light Assault Rifle Ballistic Cannon Battle Cannon Launcher Rocket Launcher Build | -11 -10 -10 -8 ------- Run | Yrd Mat Sub Mat Slots Evolved 10 | 5 . 3 2 Power 1 | 1 . . . Propulsion 3 | 1 . . 2 Utility 3 | 1 . 2 . Weapon 3 | 2 . 1 . Parts Attached 22 | 5 3 10 4 Power 2 | 1 . 1 . Engine 2 | 1 . 1 . Core . | . . . . Reactor . | . . . . Propulsion 5 | 2 . 1 2 Treads 3 | 2 . 1 . Leg 1 | . . . 1 Wheel 1 | . . . 1 Hover . | . . . . Flight . | . . . . Utility 6 | . 1 4 1 Device 4 | . 1 2 1 Storage . | . . . . Processor . | . . . . Hackware . | . . . . Protection 2 | . . 2 . Artifact . | . . . . Weapon 9 | 2 2 4 1 Energy Gun 2 | . . 1 1 Energy Cannon 1 | . . 1 . Ballistic Gun 2 | 2 . . . Ballistic Cannon 2 | . 1 1 . Launcher 2 | . 1 1 . Special Weapon . | . . . . Impact Weapon . | . . . . Slashing Weapon . | . . . . Piercing Weapon . | . . . . Special Melee Weapon . | . . . . Unidentified Prototypes 3 | . 1 1 1 Parts Lost . | . . . . Power . | . . . . Propulsion . | . . . . Utility . | . . . . Weapon . | . . . . Highest Loss Streak . | . . . . To Critical Strikes . | . . . . Average Backups . | . . . . Power . | . . . . Propulsion . | . . . . Utility . | . . . . Weapon . | . . . . Tool/Special . | . . . . Unused Backups 3 | . 2 1 . Power 2 | . 1 1 . Propulsion . | . . . . Utility . | . . . . Weapon 1 | . 1 . . Tool/Special . | . . . . Average Slot Usage (%) 78 | . 77 78 82 Engine 17 | . 22 16 20 Treads 16 | . 22 15 13 Device 7 | . . 6 11 Protection 9 | . . 11 5 Energy Gun 4 | . 11 3 6 Energy Cannon 1 | . . 1 6 Ballistic Cannon 11 | . 7 13 6 Launcher 5 | . 8 6 . Peak Build Rating 49 | 7 20 46 49 Average Rating 27 | 5 7 26 43 On Entrance 19 | 3 7 20 46 Avg Prop Armor Cover (%) 7 | . . . 7 Naked Turns . | . . . . Heaviest Build 50 | 12 17 50 48 Greatest Support 45 | 40 40 40 45 Greatest Overweight (x) 2 | . . 1 2 Average Overweight (x) . | . . . 1 Largest Inventory Capacity . | . . . . Average Capacity . | . . . . Most Carried . | . . . . Average Carried . | . . . . Final Capacity . | . . . . Final Carried . | . . . . Transmogrified Parts 6 | . . 4 2 Integrity Recovered 12 | . . 12 . Class Distribution -------------------- 40% | Derelict-Tank 37% | Gunner 21% | Derelict-Gunner Dominant Class ---------------- Gunner | -10/Materials Derelict-Tank | -10/Subcaves Derelict-Gunner | -8/Materials Resources | -11 -10 -10 -8 ----------- Run | Yrd Mat Sub Mat Matter Collected 806 | 200 116 322 168 Remotely . | . . . . Salvage Created 469 | . 143 44 282 Parts 29 | . 5 6 18 Haulers Intercepted 1 | . 1 . . Recyclers Shooed . | . . . . Parts Field Recycled . | . . . . Retrieved Matter . | . . . . Parts Self-Destructed 8 | . . 8 . Prevented . | . . . . Parts Restored . | . . . . Kills | -11 -10 -10 -8 ------- Run | Yrd Mat Sub Mat Combat Hostiles Destroyed 13 | . 2 5 6 Guns 1 | . . . 1 Cannons 7 | . 1 2 4 AOE 4 | . 1 3 . Classes Destroyed 7 | . 3 1 3 Builder 1 | . 1 . . Hauler 1 | . 1 . . Operator 1 | . . . 1 Grunt 7 | . 2 2 3 Brawler 2 | . . . 2 Heavy 1 | . . . 1 Subdweller 3 | . . 3 . Best Kill Streak 4 | . 4 2 2 Combat Bots Only 2 | . 2 2 2 Max Kills in Single Turn 2 | . 2 1 1 Gunslinging . | . . . . Exploded 1 | . 1 1 . Melee . | . . . . Uniques/NPCs Destroyed . | . . . . Combat | -11 -10 -10 -8 -------- Run | Yrd Mat Sub Mat Hostile Shots Fired 121 | . 4 23 94 Missed 39 | . 1 12 26 Hits 82 | . 3 11 68 Melee 8 | . . . 8 Projectile 74 | . 3 11 60 Critical Strikes 6 | . . . 6 Damage Taken 1629 | . 33 343 1253 Core 1264 | . 24 234 1006 Absorbed by Shields . | . . . . Redirected to Core 1094 | . 24 184 886 Core Remaining (%) 93 | 100 . 86 . Volleys Fired 50 | . 4 26 20 Largest 3 | . 3 3 3 Hottest 209 | . 110 113 209 Shots Fired 111 | . 10 49 52 Gun 26 | . 4 9 13 Cannon 75 | . 4 32 39 Launcher 10 | . 2 8 . Special . | . . . . Kinetic 56 | . 4 32 20 Thermal 45 | . 4 9 32 Explosive 10 | . 2 8 . Electromagnetic . | . . . . Robot Hit Streak 10 | . 2 10 8 Robot Miss Streak 2 | . 2 2 2 Penetration Max . | . . . . Secondary Targets . | . . . . Shots Hit Robots 64 | . 5 26 33 Core Hits 26 | . 5 8 13 Critical Kills 1 | . . . 1 Critical Parts Destroyed . | . . . . Critical Strikes 7 | . . 3 4 Burn 4 | . . 2 2 Meltdown 1 | . . . 1 Blast 2 | . . 1 1 Melee Attacks . | . . . . Impact . | . . . . Slashing . | . . . . Piercing . | . . . . Sneak Attacks . | . . . . Combat Hostiles . | . . . . Follow-up Attacks . | . . . . Damage Inflicted 2244 | . 157 513 1574 Guns 235 | . 13 38 184 Cannons 1642 | . 54 198 1390 Explosions 363 | . 90 273 . Melee . | . . . . Ramming 4 | . . 4 . Kinetic 489 | . 54 198 237 Thermal 1388 | . 13 38 1337 Explosive 363 | . 90 273 . Electromagnetic . | . . . . Impact . | . . . . Slashing . | . . . . Piercing . | . . . . Highest Corruption 16 | . . 16 . Average Corruption 15 | . . 15 . Corruption Purged . | . . . . Corruption Blocked . | . . . . Effects 2 | . . 2 . Data Loss (major) 1 | . . 1 . Alerts 1 | . . 1 . Overload Shots 9 | . . . 9 Overflow Damage 20 | . . . 20 Projectiles 20 | . . . 20 Explosions . | . . . . Melee . | . . . . Knockbacks 5 | . . 2 3 Impact . | . . . . Kinetic 5 | . . 2 3 Secondary . | . . . . Self-Inflicted Damage 131 | . . 131 . Shots 5 | . . 5 . Rammed 2 | . 1 1 . Targets Rammed 2 | . 1 1 . Kicked . | . . . . Crushed . | . . . . Highest Temperature 176 | . 176 42 129 Average Temperature 47 | . 80 11 50 Received Heat Transfer 513 | . 18 9 486 Siege Activations . | . . . . Martial Activations . | . . . . Shielding Activations . | . . . . Robots Disrupted . | . . . . Combat Hostiles . | . . . . Robots Corrupted . | . . . . Combat Hostiles . | . . . . Parts Fried . | . . . . Impact Corruptions . | . . . . Robots Melted 1 | . . . 1 Combat Hostiles 1 | . . . 1 Parts Melted . | . . . . Heat Transferred 851 | . 37 259 555 Parts Sabotaged . | . . . . Parts Stolen . | . . . . Parts Stripped . | . . . . Power Chain Reactions . | . . . . Alert | -11 -10 -10 -8 ------- Run | Yrd Mat Sub Mat Maximum Alert Level . | . . . . Low Security (%) 100 | 100 100 . 100 Level 1 . | . . . . Level 2 . | . . . . Level 3 . | . . . . Level 4 . | . . . . Level 5 . | . . . . High Security . | . . . . Max Security . | . . . . Peak Influence 128 | . 56 . 128 Initial . | . . . . Average 26 | . 15 . 33 Influence Increases 301 | . 66 50 185 Destroy 0b10 Robot/C 200 | . 40 40 120 Destroy 0b10 Robot/NC 15 | . 10 . 5 Destroy Leader 52 | . 2 10 40 Disable Machine 15 | . . . 15 Destroy Structure 19 | . 14 . 5 Influence Decreases 183 | . 20 96 67 Entered New Map 23 | . . 23 . Time Decay 160 | . 20 73 67 Squads Dispatched 4 | . 1 . 3 Investigation 1 | . . . 1 Extermination . | . . . . Reinforcement 2 | . 1 . 1 Assault . | . . . . Garrison 1 | . . . 1 Intercept . | . . . . Searches Triggered . | . . . . Construction Impeded . | . . . . Haulers Reinforced . | . . . . Active Scanning Responses . | . . . . Cargo Convoy Interrupts . | . . . . Stealth | -11 -10 -10 -8 --------- Run | Yrd Mat Sub Mat Distress Signals . | . . . . Communications Jammed . | . . . . Distress Signals . | . . . . Times Spotted 18 | . 2 5 11 Peak Tracking Total 7 | . 2 2 7 Tactical Retreats . | . . . . Traps | -11 -10 -10 -8 ------- Run | Yrd Mat Sub Mat Traps Triggered . | . . . . Indirectly . | . . . . Trap Hack Attempts . | . . . . Triggered . | . . . . Disarmed . | . . . . Reprogrammed . | . . . . Reused . | . . . . Traps Extracted . | . . . . Installed . | . . . . Triggered . | . . . . Machines | -11 -10 -10 -8 ---------- Run | Yrd Mat Sub Mat Machines Disabled 2 | . . 1 1 Max in Single Turn 1 | . . 1 1 Machines Repaired . | . . . . Machines Dismantled . | . . . . Machines Sabotaged . | . . . . Overloaded Fab Kills . | . . . . Hacking | -11 -10 -10 -8 --------- Run | Yrd Mat Sub Mat Machines Accessed 4 | . . 2 2 Terminals 2 | . . . 2 Fabricators . | . . . . Repair Stations . | . . . . Recycling Units . | . . . . Scanalyzers . | . . . . Garrison Access . | . . . . Total Hacks 12 | . . 5 7 Successful 5 | . . 5 . Failed 7 | . . . 7 Catastrophic 1 | . . . 1 Database Lockouts . | . . . . Manual 8 | . 1 . 7 Terminals 7 | . . . 7 Fabricators . | . . . . Repair Stations . | . . . . Recycling Units . | . . . . Scanalyzers . | . . . . Garrison Access . | . . . . Terminal Hacks 5 | . . 5 . Record 4 | . . 4 . Proto ID Catalog 1 | . . 1 . Fabricator Hacks . | . . . . Repair Station Hacks . | . . . . Recycling Unit Hacks . | . . . . Scanalyzer . | . . . . Garrison Access Hacks . | . . . . Unauthorized Hacks . | . . . . Terminals . | . . . . Fabricators . | . . . . Repair Stations . | . . . . Recycling Units . | . . . . Scanalyzers . | . . . . Garrison Access . | . . . . Data Cores Recovered 1 | . . . 1 Used . | . . . . Hacking Detections 2 | . . . 2 Full Trace Events 1 | . . . 1 Feedback Events . | . . . . Feedback Blocked . | . . . . Robot Schematics Acquired . | . . . . Robots Built . | . . . . Authchips . | . . . . Time . | . . . . Total Robot Build Rating . | . . . . Part Schematics Acquired . | . . . . Parts Built . | . . . . Authchips . | . . . . Time . | . . . . Total Part Build Rating . | . . . . Part Studies Acquired . | . . . . Parts Repaired . | . . . . Time . | . . . . Parts Recycled . | . . . . Recycled Matter . | . . . . Retrieved Matter . | . . . . Retrieved Components . | . . . . Parts Scanalyzed . | . . . . Part Schematics Acquired . | . . . . Parts Damaged . | . . . . Bothacking | -11 -10 -10 -8 ------------ Run | Yrd Mat Sub Mat Used RIF Installer . | . . . . Robots Hacked . | . . . . Non-combat . | . . . . Combat . | . . . . Robot Hacks Applied . | . . . . Relay Couplers Released . | . . . . Fabnet Peak Effective % . | . . . . Robots Rewired . | . . . . Allies Hacked . | . . . . Hacks Repelled . | . . . . Allies | -11 -10 -10 -8 -------- Run | Yrd Mat Sub Mat Total Allies . | . . . . Largest Group . | . . . . Highest-Rated Group . | . . . . Highest-Rated Ally . | . . . . Total Orders . | . . . . Ally Attacks . | . . . . Total Damage . | . . . . Kills . | . . . . Allies Corrupted . | . . . . Allies Melted . | . . . . X0-1V1 Amusement Gains 22 | . 7 4 11 Good Acts 13 | . . 11 2 Bad Acts 12 | . . 11 1 Intel | -11 -10 -10 -8 ------- Run | Yrd Mat Sub Mat Active Infowar (turns) 271 | . . 181 90 Optics 55 | . . . 55 Sensors 216 | . . 181 35 Robot Analysis Total . | . . . . Derelict Logs Recovered 1 | . . 1 . Drone Launches . | . . . . Drone Recoveries . | . . . . Exploration | -11 -10 -10 -8 ------------- Run | Yrd Mat Sub Mat Turns Passed 1355 | 22 110 1001 222 Spaces Moved 635 | 11 58 483 83 Core . | . . . . Treads 576 | 6 58 483 29 Legs 5 | 5 . . . Wheels 54 | . . . 54 Hover . | . . . . Flight . | . . . . Fastest Speed 115 | 120 160 160 115 Average Speed 180 | 141 160 185 171 Slowest Speed 250 | 160 160 250 250 Overloaded Moves . | . . . . Propulsion Burnouts . | . . . . Robots Hopped . | . . . . Potential Cave-ins 6 | . . . 6 Cave-ins Triggered . | . . . . Exploration Rate (%) 16 | 2 16 35 12 Regions Visited 3 Branch Regions 1 Pre-discovered Areas 2 | . . 2 . Known Exits Taken 1 | . . 1 . Unknown Exits Taken 2 | 1 1 . . Scrap Searched 6 | . . 6 . Spaces Dug . | . . . . Terrain Destroyed 70 | . 15 50 5 Melee . | . . . . Projectile 6 | . . 1 5 AOE 64 | . 15 49 . Terrain Rammed . | . . . . Walls Destroyed . | . . . . Machines Disabled . | . . . . Actions | -11 -10 -10 -8 --------- Run | Yrd Mat Sub Mat Total 752 | 16 65 546 125 Wait 8 | . . 8 . Move 632 | 10 57 482 83 Hop . | . . . . Pick Up . | . . . . Fast Attach 20 | 5 1 10 4 Attach . | . . . . Detach 4 | . . 1 3 Swap 5 | . 2 2 1 Drop 8 | 1 . 6 1 Fire 50 | . 4 26 20 Melee . | . . . . Ram . | . . . . Kick . | . . . . Crush 2 | . 1 1 . Escape Stasis . | . . . . Rewire . | . . . . Trap . | . . . . Miscellaneous 23 | . . 10 13 Route ------- -11/Scrapyard -10/Materials -10/Subcaves (discovered 4 exits: *Mat x2 / Rec / [*Scr]) -8/Materials History --------- Turn | Location | Event 1 | -11/Scrapyard | Upgraded with Power slot (x1) 1 | -11/Scrapyard | Upgraded with Propulsion slot (x1) 1 | -11/Scrapyard | Upgraded with Utility slot (x1) 1 | -11/Scrapyard | Upgraded with Weapon slot (x2) 1 | -11/Scrapyard | Discovered new exit (range 1) 23 | -11/Scrapyard | Entered Materials 109 | -10/Materials | Discovered new exit (range 12) 124 | -10/Materials | Prayed at D.C.S.S. Altar Unit 124 | -10/Materials | Reached level 2 133 | -10/Materials | Entered Subcaves 134 | -10/Subcaves | Approached by a straggling Scientist 135 | -10/Subcaves | Reached level 3 138 | -10/Subcaves | Upgraded with Utility slot (x2) 138 | -10/Subcaves | Upgraded with Weapon slot (x1) 213 | -10/Subcaves | Shifting Twisted Machinery released Mak. Light Armor Plating 228 | -10/Subcaves | X0-1V1 activates XOMVISION 255 | -10/Subcaves | Shifting Twisted Machinery released Sub. Laser 317 | -10/Subcaves | Build established: Gunner 330 | -10/Subcaves | Disturbed a concealed Subdweller 418 | -10/Subcaves | X0-1V1 mutated your Weapon slot to Propulsion slot 448 | -10/Subcaves | Ambushed by Subdwellers from Twisted Machinery 455 | -10/Subcaves | Identified exit to Materials 455 | -10/Subcaves | X0-1V1 revealed exit location to -8/Materials 633 | -10/Subcaves | X0-1V1 mutated your Propulsion slot to Weapon slot 692 | -10/Subcaves | X0-1V1 activates XOMVISION 707 | -10/Subcaves | X0-1V1 revealed exit location to -8/Materials 769 | -10/Subcaves | Visited Clippyterm 774 | -10/Subcaves | Identified exit to Recycling 774 | -10/Subcaves | Learned location of Section 7 (-3) 777 | -10/Subcaves | Scientist uncovered a shortcut to Scraptown 782 | -10/Subcaves | Build established: Derelict-Tank 933 | -10/Subcaves | Visited 4L-MR0's lab 947 | -10/Subcaves | Found Prototype Device 947 | -10/Subcaves | Identified Sfc. Transmogrifier 965 | -10/Subcaves | Found Powered Cannon 966 | -10/Subcaves | Attached Powered Cannon, gained temporary slot: Power 1065 | -10/Subcaves | System corruption reached 10% 1134 | -10/Subcaves | Entered Materials 1136 | -8/Materials | Reached level 4 1138 | -8/Materials | Upgraded with Propulsion slot (x1) 1201 | -8/Materials | X0-1V1 vaporized surrounding terrain (radius 23) 1201 | -8/Materials | Reached level 5 1204 | -8/Materials | Upgraded with Propulsion slot (x1) 1305 | -8/Materials | Garrison activated, responded to threat 1339 | -8/Materials | Core integrity fell below 50% 1349 | -8/Materials | Core integrity fell below 20% 1356 | -8/Materials | Destroyed by Y-45 Defender with Beam Rifle Last Messages --------------- 01342_ K-01 Serf destroyed. 01342_ G-47 Trooper knocked back. 01344_ Critical hit (Burn: +37). 01346_ B-36 Bruiser suffers critical hit (Burn). 01346_ Sub. Power Source severed. 01346_ Temporary Power slot lost. 01347_ B-36 Bruiser destroyed. 01347_ G-47 Trooper knocked back. 01350_ G-47 Trooper heat spikes uncontrollably. 01350_ G-47 Trooper overheating. 01351_ G-47 Trooper destroyed. 01352_ G-47 Trooper overheating. 01353_ G-47 Trooper heat damages Particle Gun. 01353_ G-47 Trooper overheating. 01354_ Used Protomatter to restore core integrity (+150, depleted) 01354_ G-47 Trooper overheating. 01355_ Destroyed Imp. Aluminum Leg. 01355_ G-47 Trooper overheating. 01356_ Critical hit (Burn: +37). 01356_ X0-1V1 howls with laughter! Map ----- +----------------------------------------------------+ | | | | | ????????????????????????????????????????? | | ????????????????????????????????????????? | | ????????????????????????????????????????? | | ????????????????????????????????????????? | | ????????????????????????????????????????? | | ????????????????????????????????????????? | | ????????????????????????????????????????? | | ????????????????????????????????????????? | | ????????????????????????????????????????? | | ????????????????????????????????????????? | | ????????????????????????????????????????? | | ????????????????????????????????????????? | | ????????????????????????????????????????? | | ????????????????????????????????????????? | | ????????????????????????????????????????? | | ????????????????????????????????#???????? | | ??????????????????????????????? #???????? | | ?????????????????????????????? #???????? | | ?????????????????????????????# #???????? | | ????????? ????????????????#; ##??????? | | ???????????? ############%!! #??????? | | ????????????????; % !=%Y=! #??????? | | ???????????????????#; %%**g! %+??????? | | ???????????????????#; % /@=## #??????? | | ???????????????????#; l!g#????????????? | | ???????????########## !%# #???????????? | | ???????? % ###???????????? | | ???????? #?????????????? | | ??????????############## g#????##???????? | | ???????????????????????# %#####"#######?? | | ???????????????????????# + " ### | | ???????????????????###?# ; "" " | | ???????????????????? # ; T" " | | ??????????????????? !# # "" " | | ?????????????????? ? # # " | | ???????????????? """ ; # [ " | | ???????????????? " " " ; #""""""" | | ???????????????"G" " " ; # | | ?????????????" """ ; # | | ?????????????" ; # | | ???????????? """""+""""; # | | ????????????"""" ""; #""""" | | ???????????? " | | ??????????? " " | | ??????????? = [ " | | ?????????????### """""##[ " | | ????????????"""## """"""""= " | | ??????????? [# " " " | +----------------------------------------------------+ Best States ------------- Heat Dissipation 77 Coolant Potential 50 Energy Generation 29 Energy Capacity 1205 Matter Stores 391 Matter Capacity 750 Sight Range 19 Robot Scan Range 16 Terrain Scan Density 10 Armor Coverage 900 Evasion (%) 45 Recoil Reduction 2 Item Schematics ----------------- None Robot Schematics ------------------ None Fabricated ------------ Nothing Repaired ---------- Nothing Studied --------- None Alien Tech Used ----------------- None Achievements -------------- None Challenges ------------ None RPGLIKE | -11 -10 -10 -8 --------- Run | Yrd Mat Sub Mat Levels Raised 4 | . 1 1 2 XP Earned 9950 | 3000 2700 1625 2625 XP Spent 8975 | 2960 . 3000 3015 Upgrades 24 | 9 . 3 12 Power Slot 1 | 1 . . . Propulsion Slot 3 | 1 . . 2 Utility Slot 3 | 1 . 2 . Weapon Slot 3 | 2 . 1 . Core Integrity 5 | 4 . . 1 Heat Dissipation 5 | . . . 5 Energy Storage 1 | . . . 1 Matter Storage 1 | . . . 1 Mass Support 1 | . . . 1 Sight Range 1 | . . . 1 Protomatter Created 162 | . . 72 90 Integrity Restored 432 | . . 165 267 Core 408 | . . 152 256 Parts 24 | . . 13 11 Protomatter Decayed 49 | . . 49 . Game ------ Seed ShadingTerrainWell Manual? 0 Play Time 00:10:37 Cumulative 1358.5 hours Start 2026.08.09 @ 14:53:25 End 2026.08.09 @ 15:01:38 Sessions 1 Manual Loads 0 Difficulty Rogue Special Mode Winter2019/RPGLIKE Game No. 1668 Rogue 1384 Adventurer 124 Explorer 160 Win Type - Total 70 Types 55/0/9/4/1/0/0/1/0/0 Lore% 93 Gallery% 84 Achievement% 74 Wizard Run 0 Options --------- Layout 0 ASCII 0 Keyboard 1 Movement Numpad Keybinds 0 Fullscreen 2 Font 18/X11 Map View 76x50 Zoom Use 0% Tactical HUD 1 Map Filters NONE Filters NONE Steam 1 RUN: c407ba8b-b2d4-4c45-b2da-78c279235e84